bitfinex/quotes_SOLUSD_20230111
["timestamp","ask_amount","ask_price","bid_price","bid_amount"]
[1673410315910,66.7,16.063,16.048,40.0]
[1673410316435,66.7,16.063,16.049,20.0]
[1673410316650,46.7,16.063,16.05,20.0]
[1673410316847,20.0,16.064,16.05,20.0]
[1673410318016,113.241,16.065,16.05,20.0]
[1673410318205,113.241,16.065,16.051,20.0]
[1673410318415,46.69,16.066,16.051,78.11489815]
[1673410318632,110.497,16.074,16.052,21.92]
[1673410318850,110.497,16.074,16.053,44.24]
[1673410319065,110.497,16.074,16.054,21.92]
[1673410319273,110.497,16.074,16.055,66.73]
[1673410319487,110.497,16.074,16.056,119.8781]
[1673410319696,110.497,16.074,16.058,20.0]
[1673410319923,110.497,16.074,16.06,20.0]
[1673410320140,110.497,16.074,16.061,1.92]
[1673410320959,110.497,16.074,16.061,17.53489815]
[1673410321811,46.66,16.077,16.061,17.53489815]
[1673410322026,46.66,16.079,16.062,20.0]
[1673410322228,20.0,16.078,16.062,20.0]
[1673410322439,20.0,16.076,16.062,20.0]
[1673410322646,46.67,16.075,16.062,20.0]
[1673410323282,46.66,16.077,16.062,20.0]
[1673410324122,46.66,16.077,16.063,15.61489815]
[1673410324330,20.0,16.078,16.064,1.92]
[1673410324656,46.66,16.077,16.063,15.61489815]
[1673410325501,46.66,16.077,16.062,20.0]
[1673410325708,46.66,16.077,16.063,1.92]
[1673410326331,46.66,16.077,16.062,35.61489815]
[1673410327499,46.66,16.077,16.062,20.0]
[1673410328322,46.66,16.077,16.062,51.2297963]
[1673410328539,46.66,16.077,16.062,35.61489815]
[1673410328739,46.66,16.077,16.063,1.92]
[1673410329491,46.66,16.077,16.063,15.61489815]
[1673410329693,46.66,16.077,16.062,20.0]
[1673410329904,46.66,16.077,16.062,35.61489815]
[1673410330315,46.66,16.077,16.063,1.92]
[1673410331596,46.66,16.077,16.062,35.61489815]
[1673410331910,46.66,16.077,16.062,20.0]
[1673410337269,46.66,16.077,16.063,0.96]
[1673410337585,46.66,16.077,16.063,1.92]
[1673410338532,46.66,16.077,16.063,17.53489815]
[1673410339267,46.66,16.077,16.063,15.61489815]
[1673410339580,97.2001776,16.083,16.063,15.61489815]
[1673410339581,66.65,16.082,16.064,46.7]
[1673410339800,77.2001776,16.083,16.065,1.92]
[1673410339995,77.2001776,16.083,16.066,46.69]
[1673410340315,77.2001776,16.083,16.067,1.92]
[1673410340526,77.2001776,16.083,16.068,46.69]
[1673410340728,77.2001776,16.083,16.069,20.0]
[1673410341065,77.2001776,16.083,16.07,20.0]
[1673410341066,5.6207776,16.083,16.07,20.0]
[1673410341369,5.6207776,16.083,16.071,48.6]
[1673410341562,5.6207776,16.083,16.071,64.56437617]
[1673410341775,5.6207776,16.083,16.072,15.96437617]
[1673410341983,5.6207776,16.083,16.073,20.0]
[1673410346639,5.6207776,16.083,16.073,35.96437617]
[1673410347068,5.6207776,16.083,16.073,20.0]
[1673410350197,5.6207776,16.083,16.074,46.67]
[1673410350409,5.6207776,16.083,16.075,21.92]
[1673410350623,0.0007776,16.083,16.076,46.67]
[1673410350836,0.0007776,16.083,16.078,20.0]
[1673410351035,9.9222904,16.09,16.079,46.66]
[1673410351454,9.9222904,16.09,16.078,20.0]
[1673410351783,9.9222904,16.09,16.078,66.66]
[1673410351976,9.9222904,16.09,16.078,20.0]
[1673410352610,9.9222904,16.09,16.077,20.0]
[1673410352611,36.2222904,16.09,16.077,20.0]
[1673410352819,106.09732273,16.089,16.069,20.0]
[1673410353041,26.41,16.08,16.064,20.0]
[1673410353253,46.66,16.079,16.064,20.0]
[1673410353590,65.44462213,16.079,16.064,20.0]
[1673410354188,37.0,16.078,16.064,20.0]
[1673410354389,46.66,16.077,16.064,20.0]
[1673410358723,46.66,16.079,16.064,20.0]
[1673410359051,20.0,16.078,16.064,20.0]
[1673410359257,46.66,16.077,16.064,20.0]
[1673410360314,46.66,16.078,16.064,20.0]
[1673410360925,46.66,16.079,16.064,20.0]
[1673410361131,178.9,16.08,16.064,20.0]
[1673410361347,20.0,16.079,16.064,20.0]
[1673410362736,46.66,16.078,16.064,20.0]
[1673410362927,66.66,16.079,16.064,20.0]
[1673410364300,46.66,16.079,16.065,1.92]
[1673410364508,46.65,16.082,16.065,21.92]
[1673410364713,46.65,16.082,16.067,20.0]
[1673410364937,109.9631,16.083,16.069,20.0]
[1673410366299,46.63,16.087,16.069,20.0]
[1673410366509,20.0,16.086,16.069,20.0]
[1673410366713,46.64,16.085,16.069,20.0]
[1673410367042,46.64,16.085,16.071,20.0]
[1673410369964,46.63,16.087,16.071,20.0]
[1673410370180,46.63,16.088,16.071,20.0]
[1673410371876,20.0,16.087,16.071,20.0]
[1673410372072,46.64,16.086,16.071,20.0]
[1673410372930,46.63,16.087,16.071,20.0]
[1673410374403,46.63,16.088,16.071,20.0]
[1673410374619,20.0,16.087,16.071,20.0]
[1673410374924,46.64,16.086,16.071,20.0]
[1673410375341,46.64,16.086,16.07,113.4446]
[1673410375533,20.0,16.085,16.071,20.0]
[1673410375746,46.64,16.084,16.071,20.0]
[1673410376793,46.64,16.084,16.07,113.4446]
[1673410377005,20.0,16.083,16.07,113.4446]
[1673410377221,26.39,16.08,16.07,113.4446]
[1673410377746,46.66,16.079,16.07,113.4446]
[1673410379547,26.39,16.08,16.07,113.4446]
[1673410379756,46.66,16.079,16.07,113.4446]
[1673410381146,26.39,16.08,16.07,113.4446]
[1673410382402,26.39,16.08,16.071,20.0]
[1673410382588,26.39,16.08,16.067,20.0]
[1673410382803,26.39,16.08,16.068,20.0]
[1673410383012,73.04,16.08,16.068,20.0]
[1673410383242,26.39,16.08,16.068,20.0]
[1673410383557,26.39,16.08,16.069,20.0]
[1673410397655,26.39,16.08,16.068,20.0]
[1673410397841,46.66,16.079,16.068,20.0]
[1673410400378,73.04,16.08,16.068,20.0]
[1673410401236,20.0,16.079,16.066,20.0]
[1673410401416,20.0,16.079,16.062,26.37]
[1673410401417,63.66,16.078,16.062,26.37]
[1673410401629,20.0,16.077,16.06,156.9941]
[1673410401849,63.67,16.076,16.06,156.9941]
[1673410402056,46.67,16.076,16.06,131.1541]
[1673410402677,46.67,16.076,16.06,153.4141]
[1673410404257,46.67,16.076,16.06,131.1541]
[1673410406168,46.66,16.078,16.062,20.0]
[1673410406378,178.36,16.08,16.062,20.0]
[1673410406695,20.0,16.079,16.063,13.27]
[1673410409852,20.0,16.078,16.063,13.27]
[1673410410268,72.88,16.08,16.064,20.0]
[1673410410488,26.23,16.08,16.066,20.0]
[1673410410681,26.23,16.08,16.067,20.0]
[1673410411626,26.23,16.08,16.066,20.0]
[1673410411837,26.23,16.08,16.067,20.0]
[1673410417827,26.23,16.08,16.066,108.9757]
[1673410418040,20.0,16.078,16.066,108.9757]
[1673410425305,26.51,16.08,16.067,20.0]
[1673410425921,26.51,16.08,16.068,20.0]
[1673410426137,26.51,16.08,16.069,2.247]
[1673410427396,26.51,16.08,16.068,20.0]
[1673410428141,51.0843456,16.064,16.047,49.0985]
[1673410428456,51.0843456,16.064,16.052,116.7688]
[1673410428644,51.0843456,16.064,16.053,20.0]
[1673410428858,51.0843456,16.064,16.054,4.657]
[1673410430561,51.0843456,16.064,16.054,24.657]
[1673410430756,51.0843456,16.064,16.055,20.0]
[1673410430967,51.0843456,16.064,16.056,49.16]
[1673410431173,51.0843456,16.064,16.057,20.0]
[1673410431694,51.0843456,16.064,16.058,20.0]
[1673410432553,51.0843456,16.064,16.058,55.78]
[1673410432768,51.0843456,16.064,16.059,20.0]
[1673410433182,51.0843456,16.064,16.06,20.0]
[1673410433595,51.0843456,16.064,16.061,20.0]
[1673410434009,0.0043456,16.064,16.061,20.0]
[1673410434220,2.60039145,16.075,16.062,20.0]
[1673410435588,2.60039145,16.076,16.063,1.92]
[1673410436005,2.60039145,16.077,16.064,29.67]
[1673410436224,114.6221,16.083,16.066,20.0]
[1673410436550,114.6221,16.083,16.068,20.0]
[1673410436756,114.6221,16.083,16.069,50.49]
[1673410436970,114.6221,16.083,16.07,20.0]
[1673410437804,114.1221,16.083,16.07,20.0]
[1673410439391,114.1221,16.083,16.07,136.291]
[1673410442339,46.65,16.082,16.07,136.291]
[1673410442649,114.1221,16.083,16.07,136.291]
[1673410442838,46.65,16.082,16.07,136.291]
[1673410443480,20.0,16.081,16.07,116.291]
[1673410443708,46.65,16.08,16.07,116.291]
[1673410443923,66.65,16.081,16.07,116.291]
[1673410445375,46.65,16.081,16.07,116.291]
[1673410445583,46.65,16.082,16.07,116.291]
[1673410445795,46.65,16.082,16.071,20.0]
[1673410447377,114.1221,16.083,16.071,20.0]
[1673410447807,46.65,16.082,16.071,20.0]
[1673410448215,114.1221,16.083,16.071,20.0]
[1673410452318,46.65,16.082,16.071,20.0]
[1673410454203,114.1221,16.083,16.071,20.0]
[1673410454849,46.64,16.086,16.071,20.0]
[1673410455098,46.63,16.088,16.071,20.0]
[1673410456017,46.13,16.088,16.071,20.0]
[1673410457495,20.0,16.087,16.071,20.0]
[1673410457708,46.64,16.086,16.071,20.0]
[1673410459606,46.63,16.087,16.071,20.0]
[1673410460637,46.63,16.088,16.071,20.0]
[1673410460848,20.0,16.087,16.071,20.0]
[1673410461067,46.64,16.086,16.071,20.0]
[1673410464235,20.0,16.084,16.07,116.291]
[1673410464547,46.65,16.083,16.071,20.0]
[1673410465595,46.64,16.084,16.071,20.0]
[1673410466326,46.64,16.086,16.071,20.0]
[1673410466651,46.64,16.086,16.072,17.0]
[1673410467387,20.0,16.085,16.072,17.0]
[1673410467576,46.64,16.084,16.072,17.0]
[1673410468329,46.64,16.086,16.072,17.0]
[1673410468534,46.64,16.086,16.073,20.0]
[1673410468857,46.63,16.088,16.073,20.0]
[1673410469673,46.63,16.089,16.073,20.0]
[1673410469886,20.0,16.088,16.073,20.0]
[1673410470201,36.3822904,16.09,16.073,20.0]
[1673410470202,46.63,16.087,16.073,20.0]
[1673410470415,46.63,16.089,16.073,20.0]
[1673410471794,65.41462213,16.089,16.073,20.0]
[1673410472200,20.0,16.088,16.073,20.0]
[1673410472416,46.63,16.087,16.073,20.0]
[1673410473577,46.63,16.088,16.073,20.0]
[1673410476725,46.63,16.088,16.074,17.0]
[1673410478515,84.19924426,16.088,16.074,17.0]
[1673410478959,65.41462213,16.088,16.074,17.0]
[1673410480305,9.9222904,16.09,16.075,52.57347128]
[1673410480517,8.4222904,16.09,16.075,202.24343443]
[1673410480725,8.4222904,16.09,16.081,20.0]
[1673410481149,8.4222904,16.09,16.081,111.5751809]
[1673410481492,46.6,16.1,16.083,20.0]
[1673410481693,110.8439,16.101,16.084,137.4609]
[1673410481884,110.8439,16.101,16.085,0.96]
[1673410482303,46.58,16.104,16.086,0.96]
[1673410482525,46.58,16.106,16.087,0.96]
[1673410482740,46.58,16.106,16.088,0.96]
[1673410482943,46.58,16.106,16.087,37.96]
[1673410483153,46.58,16.106,16.088,20.0]
[1673410483368,46.58,16.106,16.089,20.0]
[1673410484628,132.03,16.1,16.084,116.5009]
[1673410484828,63.6,16.099,16.084,116.5009]
[1673410485038,82.38462213,16.099,16.084,116.5009]
[1673410485249,20.0,16.098,16.084,116.5009]
[1673410485458,46.6,16.097,16.084,116.5009]
[1673410486416,20.0,16.096,16.084,116.5009]
[1673410486635,46.61,16.095,16.081,20.0]
[1673410486824,46.61,16.095,16.075,20.0]
[1673410487032,46.61,16.095,16.078,111.9389]
[1673410487250,46.61,16.095,16.079,20.0]
[1673410489782,20.0,16.096,16.079,20.0]
[1673410489982,46.61,16.095,16.079,20.0]
[1673410491782,26.38,16.09,16.078,111.9389]
[1673410491995,46.63,16.089,16.078,111.9389]
[1673410492947,46.63,16.089,16.079,20.0]
[1673410493993,46.63,16.089,16.078,111.9389]
[1673410494931,46.63,16.089,16.079,20.0]
[1673410496096,26.37,16.09,16.079,20.0]
[1673410497037,26.37,16.09,16.078,111.9389]
[1673410497354,86.63,16.089,16.075,20.0]
[1673410499878,86.63,16.089,16.074,114.286]
[1673410502212,86.63,16.089,16.071,20.0]
[1673410502418,150.64504438,16.089,16.069,20.0]
[1673410502616,204.5,16.088,16.06,131.81]
[1673410502829,46.63,16.087,16.068,20.0]
[1673410503038,20.0,16.085,16.068,20.0]
[1673410503260,46.64,16.084,16.068,40.0]
[1673410503663,46.64,16.084,16.069,17.0]
[1673410504213,20.0,16.083,16.069,17.0]
[1673410505261,46.65,16.082,16.069,17.0]
[1673410505888,46.65,16.082,16.068,40.0]
[1673410506615,46.65,16.082,16.069,20.0]
[1673410507890,46.64,16.084,16.069,20.0]
[1673410508839,46.64,16.086,16.07,17.0]
[1673410509018,46.64,16.086,16.071,20.0]
[1673410509652,46.64,16.086,16.072,17.0]
[1673410509882,46.63,16.087,16.072,17.0]
[1673410510413,46.63,16.087,16.071,20.0]
[1673410511539,46.63,16.087,16.072,17.0]
[1673410513347,46.63,16.088,16.072,17.0]
[1673410513960,46.63,16.088,16.073,20.0]
[1673410514283,46.63,16.089,16.074,20.0]
[1673410514495,20.0,16.098,16.075,20.0]
[1673410514703,46.6,16.097,16.076,20.0]
[1673410514913,20.0,16.096,16.077,20.0]
[1673410515134,46.61,16.095,16.078,20.0]
[1673410516183,46.61,16.095,16.079,20.0]
[1673410516600,46.6,16.097,16.081,20.0]
[1673410516800,26.18,16.1,16.082,0.96]
[1673410517012,181.67182213,16.101,16.082,0.96]
[1673410517013,18.78462213,16.101,16.083,20.0]
[1673410517335,158.94524012,16.103,16.085,20.0]
[1673410517542,64.55686173,16.101,16.086,115.5744]
[1673410517861,151.60566237,16.101,16.088,20.0]
[1673410519760,46.58,16.105,16.088,20.0]
[1673410519976,20.0,16.104,16.088,20.0]
[1673410520165,46.59,16.103,16.088,20.0]
[1673410520803,46.58,16.104,16.088,36.31378534]
[1673410521857,46.58,16.104,16.089,1.92]
[1673410522183,87.04880064,16.105,16.089,1.92]
[1673410522184,87.04880064,16.105,16.09,16.31378534]
[1673410522580,46.58,16.104,16.09,16.31378534]
[1673410523016,5.6207776,16.107,16.088,20.0]
[1673410523224,46.58,16.106,16.089,16.31378534]
[1673410523843,46.58,16.106,16.09,20.0]
[1673410524360,46.58,16.106,16.09,36.31378534]
[1673410524597,44.08,16.106,16.09,36.31378534]
[1673410525325,5.6207776,16.107,16.091,0.96]
[1673410525541,5.6207776,16.107,16.092,20.0]
[1673410525732,5.6207776,16.107,16.093,20.0]
[1673410525939,5.6207776,16.107,16.094,20.0]
[1673410526164,5.6207776,16.107,16.092,225.8495]
[1673410526364,46.58,16.106,16.093,20.0]
[1673410526581,5.6207776,16.107,16.093,20.0]
[1673410526888,5.6207776,16.107,16.093,36.31378534]
[1673410527428,5.6207776,16.107,16.094,1.92]
[1673410527636,5.6207776,16.107,16.095,20.0]
[1673410527835,5.6207776,16.107,16.095,36.31378534]
[1673410528045,5.6207776,16.107,16.096,20.0]
[1673410528675,5.6207776,16.107,16.096,36.31378534]
[1673410529006,5.6207776,16.107,16.097,21.92]
[1673410529217,5.6207776,16.107,16.098,20.0]
[1673410529406,5.6207776,16.107,16.099,20.0]
[1673410530074,5.6207776,16.107,16.1,1.92]
[1673410530260,5.6207776,16.107,16.099,36.31378534]
[1673410531116,7.76e-05,16.107,16.1,1.92]
[1673410531323,7.76e-05,16.107,16.102,20.0]
[1673410532160,7.76e-05,16.107,16.102,36.31378534]
[1673410534169,7.76e-05,16.107,16.102,20.0]
[1673410535308,7.76e-05,16.107,16.099,20.0]
[1673410537730,7.76e-05,16.107,16.087,20.0]
[1673410537951,26.28,16.1,16.087,20.0]
[1673410538156,68.26355,16.093,16.083,20.0]
[1673410538368,68.26355,16.093,16.076,112.8183]
[1673410538369,17.0,16.092,16.076,112.8183]
[1673410538685,26.16,16.09,16.076,112.8183]
[1673410538905,26.16,16.09,16.075,20.0]
[1673410538906,83.63,16.089,16.077,20.0]
[1673410539207,83.63,16.089,16.071,112.8183]
[1673410539407,20.0,16.088,16.072,20.0]
[1673410539829,63.63,16.087,16.072,20.0]
[1673410540039,46.63,16.088,16.066,20.0]
[1673410540246,26.18,16.09,16.073,16.31378534]
[1673410540474,63.63,16.089,16.067,112.8183]
[1673410540667,20.0,16.088,16.071,20.0]
[1673410541729,46.63,16.087,16.071,20.0]
[1673410542049,26.28,16.08,16.068,20.0]
[1673410543305,46.65,16.083,16.069,16.31378534]
[1673410543517,46.63,16.087,16.07,20.0]
[1673410544264,20.0,16.086,16.07,20.0]
[1673410544466,46.64,16.085,16.07,20.0]
[1673410548989,20.0,16.084,16.069,16.31378534]
[1673410549203,46.65,16.083,16.069,16.31378534]
[1673410549933,46.64,16.085,16.07,20.0]
[1673410550144,46.63,16.087,16.07,20.0]
[1673410550777,46.63,16.087,16.071,16.31378534]
[1673410551939,20.0,16.086,16.07,20.0]
[1673410552117,46.64,16.085,16.07,20.0]
[1673410554253,46.64,16.085,16.068,20.0]
[1673410554447,26.16,16.08,16.067,112.8183]
[1673410554656,26.16,16.08,16.068,20.0]
[1673410555203,20.0,16.079,16.068,20.0]
[1673410555601,66.66,16.079,16.068,20.0]
[1673410558439,66.66,16.079,16.063,20.0]
[1673410558868,18.55398424,16.078,16.062,111.6216]
[1673410559083,66.66,16.077,16.062,111.6216]
[1673410559293,18.5439002,16.076,16.062,111.6216]
[1673410559506,66.67,16.075,16.062,111.6216]
[1673410559920,1.56143208,16.074,16.058,16.31378534]
[1673410560140,18.56143208,16.074,16.057,128.1113]
[1673410560558,17.0,16.074,16.057,128.1113]
[1673410560769,17.0,16.074,16.058,20.0]
[1673410561273,46.67,16.073,16.059,20.0]
[1673410561483,17.0,16.072,16.06,20.0]
[1673410562125,17.0,16.073,16.06,20.0]
[1673410570102,46.67,16.074,16.06,20.0]
[1673410570319,20.0,16.075,16.061,16.31378534]
[1673410570531,46.67,16.074,16.061,16.31378534]
[1673410570756,20.0,16.075,16.061,16.31378534]
[1673410572422,20.0,16.075,16.06,20.0]
[1673410572630,46.67,16.076,16.061,20.0]
[1673410572836,66.66,16.077,16.061,36.31378534]
[1673410573046,66.66,16.077,16.062,16.31378534]
[1673410573478,66.66,16.077,16.06,20.0]
[1673410573887,17.0,16.076,16.06,20.0]
[1673410574097,46.67,16.075,16.06,20.0]
[1673410574414,20.0,16.074,16.06,20.0]
[1673410576005,46.67,16.075,16.06,20.0]
[1673410576195,46.67,16.076,16.061,16.31378534]
[1673410576411,37.0,16.075,16.062,17.0]
[1673410576616,37.0,16.075,16.06,20.0]
[1673410576829,46.67,16.074,16.061,17.0]
[1673410577377,17.0,16.073,16.06,20.0]
[1673410577564,46.68,16.072,16.06,20.0]
[1673410578408,20.0,16.075,16.061,16.31378534]
[1673410578611,20.0,16.075,16.06,20.0]
[1673410578837,46.67,16.074,16.059,16.31378534]
[1673410579046,46.67,16.074,16.06,40.0]
[1673410580108,46.67,16.076,16.06,40.0]
[1673410580422,46.67,16.076,16.061,17.0]
[1673410581886,46.67,16.076,16.062,16.31378534]
[1673410582092,46.66,16.079,16.063,40.0]
[1673410582329,26.18,16.08,16.063,40.0]
[1673410582519,26.18,16.08,16.064,16.31378534]
[1673410582728,26.18,16.08,16.065,154.7764]
[1673410583265,46.65,16.083,16.066,38.23378534]
[1673410583461,46.63,16.087,16.066,38.23378534]
[1673410583676,46.63,16.087,16.067,36.31378534]
[1673410583998,46.63,16.087,16.068,35.23378534]
[1673410584209,46.63,16.087,16.07,20.0]
[1673410584210,20.0,16.087,16.07,20.0]
[1673410584426,46.64,16.086,16.071,17.96]
[1673410584944,46.64,16.086,16.072,109.5991]
[1673410585157,46.64,16.086,16.073,20.0]
[1673410585903,46.63,16.088,16.074,17.0]
[1673410588511,46.63,16.089,16.074,17.0]
[1673410588727,46.63,16.089,16.075,20.0]
[1673410588938,26.29,16.09,16.076,38.92]
[1673410589156,26.29,16.09,16.077,20.0]
[1673410589478,26.29,16.09,16.078,17.0]
[1673410589670,26.29,16.09,16.079,20.0]
[1673410590104,26.29,16.09,16.078,20.0]
[1673410592541,20.0,16.089,16.078,20.0]
[1673410592854,20.0,16.089,16.076,20.0]
[1673410593046,66.63,16.089,16.076,20.0]
[1673410593258,46.63,16.089,16.076,20.0]
[1673410595485,46.63,16.089,16.074,117.7201]
[1673410595689,20.0,16.087,16.074,117.7201]
[1673410595900,46.64,16.086,16.074,117.7201]
[1673410596221,20.0,16.085,16.074,117.7201]
[1673410596421,46.64,16.084,16.074,117.7201]
[1673410597274,46.64,16.084,16.069,36.31378534]
[1673410599049,20.0,16.083,16.069,20.0]
[1673410599247,20.0,16.083,16.066,20.0]
[1673410599248,26.28,16.08,16.066,20.0]
[1673410599460,26.28,16.08,16.067,36.31378534]
[1673410599688,26.28,16.08,16.066,20.0]
[1673410599900,26.28,16.08,16.067,128.2138]
[1673410600091,26.28,16.08,16.068,20.0]
[1673410600634,26.28,16.08,16.069,20.0]
[1673410600957,26.28,16.08,16.062,16.31378534]
[1673410600958,111.01530626,16.064,16.038,133.19791986]
[1673410601140,26.16,16.05,16.041,108.2138]
[1673410601350,26.16,16.05,16.023,32.26233916]
[1673410601666,3.0744512,16.059,16.035,49.61692691]
[1673410601874,20.0744512,16.059,16.035,113.18957195]
[1673410602090,3.0744512,16.057,16.036,20.0]
[1673410602516,3.0744512,16.057,16.037,108.2138]
[1673410602517,23.0744512,16.057,16.037,108.2138]
[1673410602934,23.0744512,16.057,16.038,20.0]
[1673410603361,23.0744512,16.057,16.039,20.0]
[1673410605139,109.44928304,16.057,16.039,20.0]
[1673410605559,109.44928304,16.057,16.038,20.0]
[1673410606727,109.44928304,16.057,16.039,21.92]
[1673410606919,109.44928304,16.057,16.04,37.0]
[1673410607125,109.44928304,16.057,16.041,1.92]
[1673410607756,109.44928304,16.057,16.04,52.40268138]
[1673410609987,109.44928304,16.057,16.041,3.549]
[1673410610605,109.44928304,16.057,16.04,37.0]
[1673410610827,23.0744512,16.057,16.041,30.21]
[1673410611013,23.0744512,16.057,16.042,21.92]
[1673410611229,23.0744512,16.057,16.043,17.0]
[1673410611442,23.0744512,16.057,16.044,20.0]
[1673410611974,23.0744512,16.057,16.045,17.0]
[1673410612299,23.0744512,16.057,16.046,20.0]
[1673410612740,23.0744512,16.057,16.047,17.0]
[1673410612929,23.0744512,16.057,16.048,20.0]
[1673410615973,23.0744512,16.057,16.042,20.0]
[1673410616185,23.0744512,16.057,16.043,17.0]
[1673410616395,23.0744512,16.057,16.044,20.0]
[1673410616825,23.0744512,16.057,16.045,17.0]
[1673410617148,23.0744512,16.057,16.046,20.0]
[1673410619358,23.0744512,16.057,16.042,20.0]
[1673410621665,23.0744512,16.057,16.041,20.0]
[1673410625340,23.0744512,16.057,16.042,31.52]
[1673410625762,23.0744512,16.057,16.043,20.0]
[1673410625967,23.0744512,16.057,16.044,17.0]
[1673410626176,69.7944512,16.057,16.045,20.0]
[1673410629877,17.0,16.056,16.045,20.0]
[1673410630191,23.0744512,16.055,16.041,20.0]
[1673410631455,132.6,16.05,16.028,7.19894]
[1673410631654,20.0,16.048,16.03,20.0]
[1673410632091,20.0,16.048,16.031,25.42]
[1673410632305,20.0,16.048,16.03,45.49]
[1673410632499,66.74,16.049,16.03,45.49]
[1673410632715,26.61,16.05,16.03,45.49]
[1673410632923,3.0744512,16.056,16.03,94.50026024]
[1673410633448,46.73,16.055,16.03,94.50026024]
[1673410633659,3.0744512,16.054,16.031,1.92]
[1673410633981,3.0744512,16.054,16.032,22.69]
[1673410634197,3.0744512,16.054,16.033,21.92]
[1673410634385,3.0744512,16.054,16.034,43.14]
[1673410634596,3.0744512,16.054,16.035,21.92]
[1673410634830,3.0744512,16.054,16.037,20.0]
[1673410635035,3.0744512,16.054,16.038,41.38]
[1673410636309,3.0744512,16.054,16.039,20.0]
[1673410636510,3.0744512,16.054,16.04,20.0]
[1673410636749,20.0,16.053,16.038,41.38]
[1673410636959,3.0744512,16.052,16.038,41.38]
[1673410637147,20.0,16.053,16.038,41.38]
[1673410639058,1.54675967,16.052,16.038,41.38]
[1673410641163,20.0,16.053,16.038,41.38]
[1673410643147,38.78462213,16.058,16.038,41.38]
[1673410643148,42.34019942,16.058,16.04,26.33]
[1673410643371,42.34019942,16.058,16.038,41.38]
[1673410643372,42.34019942,16.058,16.041,27.231]
[1673410643575,26.61,16.07,16.042,20.0]
[1673410643781,66.69,16.069,16.043,47.196]
[1673410643992,66.69,16.069,16.044,111.7766]
[1673410644201,66.69,16.069,16.045,51.039]
[1673410644408,66.69,16.069,16.046,17.0]
[1673410644603,20.0,16.068,16.047,51.037]
[1673410644922,46.69,16.067,16.05,26.48]
[1673410645141,26.39,16.07,16.051,142.4336]
[1673410645142,46.69,16.069,16.051,142.4336]
[1673410645346,26.39,16.07,16.052,20.96]
[1673410645670,26.39,16.07,16.053,31.19]
[1673410645882,46.69,16.069,16.053,20.0]
[1673410646284,46.69,16.069,16.054,17.0]